Workbook

Sheet EQUITY RECONCILIATION
B2: [Company Name]
B3: Equity Reconciliation
B4: [Date]
B6: Gray cells are calculated for you. You do not need to enter anything in them.
B7: EQUITY ANALYSIS
B8: Consolidated Statement of Shareholder Equity
C9: Common stock A | E9: Common stock B | G9: Preferred stock
C10: Number of shares | D10: Par value & capital in excess of par | E10: Number of shares | F10: Par value & capital in excess of par | G10: Number of shares | H10: Par value & capital in excess of par | I10: Total stock
B11: Stock balance: Beginning of period | C11: 2,100,000 | D11: $4,500,000 | E11: 0 | F11: $0 | G11: 200,000 | H11: $500,000 | I11: =D11+F11+H11+C19 -> $7,000,000
B12: Shares issued | C12: 500,000 | D12: 1,500,000 | E12: 0 | F12: 0 | G12: 0 | H12: 0 | I12: =D12+F12+H12 -> 1,500,000
B13: Shares repurchased | C13: (50,000) | D13: (90,000) | E13: 0 | F13: 0 | G13: 0 | H13: 0 | I13: =D13+F13+H13 -> (90,000)
B14: Balance: End of period | C14: =SUM(C11:C13) -> 2,550,000 | D14: =SUM(D11:D13) -> 5,910,000 | E14: 0 | F14: 0 | G14: 200,000 | H14: 500,000 | I14: 8,410,000
B16: Average price of shares issued | C16: =IF(C12=0,"N/A",D12/C12) -> $3.00 | E16: =IF(E12=0,"N/A",F12/E12) -> N/A | G16: =IF(G12=0,"N/A",H12/G12) -> N/A
B17: Average price of shares repurchased | C17: =IF(C13=0,"N/A",D13/C13) -> $1.80 | E17: =IF(E13=0,"N/A",F13/E13) -> N/A | G17: =IF(G13=0,"N/A",H13/G13) -> N/A
B19: Retained earnings balance: Beginning of period | C19: $2,000,000
B20: Dividends paid | C20: (400,000)
B21: Net earnings (loss) | C21: 800,000
B22: Balance: End of period | C22: =SUM(C19:C21) -> $2,400,000
C25: Beginning of period | D25: End of period | E25: Change
B26: Stock | C26: =I11 -> $7,000,000 | D26: =I14 -> $8,410,000 | E26: =D26-C26 -> $1,410,000
B27: Retained earnings | C27: =C19 -> $2,000,000 | D27: =C22 -> $2,400,000 | E27: =D27-C27 -> $400,000
B28: Total equity | C28: =SUM(C26:C27) -> $9,000,000 | D28: =SUM(D26:D27) -> $10,810,000 | E28: =D28-C28 -> $1,810,000
